fUSD/lending_fUSD_20250923
["ID","MTS","AMOUNT","RATE_DAILY","PERIOD"]
[387227978,1758661884431,-400.0,0.00024931,3]
[387227979,1758661884442,-400.0,0.00024931,3]
[387227980,1758661884454,-400.0,0.00024931,3]
[387227981,1758661884463,-420.88,0.00024931,3]
[387227982,1758661884472,-400.60787424,0.00024931,3]
[387227983,1758661884481,-400.0,0.00024931,3]
[387227984,1758661884491,-401.47217206,0.00024931,3]
[387227985,1758661884500,-400.0,0.00024931,3]
[387227986,1758661884510,-400.0,0.00024931,3]
[387227987,1758661884519,-732.07,0.00024931,3]
[387227988,1758661884529,-400.0,0.00024931,3]
[387227989,1758661884538,-400.0,0.00024931,3]
[387227990,1758661884548,-1308.26,0.00024931,3]
[387227991,1758661884557,-400.0,0.00024931,2]
[387227992,1758661884566,-400.0,0.00024931,3]
[387227993,1758661884575,-400.0,0.00024931,3]
[387227994,1758661884585,-400.0,0.00024931,3]
[387227995,1758661884597,-400.0,0.00024931,3]
[387227996,1758661884606,-400.0,0.00024931,3]
[387227997,1758661884615,-400.0,0.00024931,3]
[387227998,1758661884624,-400.0,0.00024931,3]
[387227999,1758661884634,-406.74935894,0.00024931,3]
[387228000,1758661884644,-400.0,0.00024931,3]
[387228001,1758661884653,-400.0,0.00024931,3]
[387228002,1758661884663,-533.44,0.00024931,3]
[387228003,1758661884672,-400.0,0.00024931,3]
[387228004,1758661884682,-400.0,0.00024931,3]
[387228005,1758661884690,-400.0,0.00024931,3]
[387228006,1758661884700,-400.0,0.00024931,3]
[387228007,1758661884709,-400.0,0.00024931,3]
[387228008,1758661884718,-656.36,0.00024931,3]
[387228009,1758661884727,-536.17,0.00024931,3]
[387228010,1758661884736,-419.46508405,0.00024931,3]
[387228011,1758661884746,-371.22,0.00024931,3]
[387228012,1758661884755,-400.0,0.00024931,3]
[387228013,1758661884765,-1334.81,0.00024931,3]
[387228014,1758661884775,-400.0,0.00024931,3]
[387228015,1758661884785,-400.0,0.00024931,3]
[387228016,1758661884795,-400.0,0.00024931,3]
[387228017,1758661884804,-400.0,0.00024931,3]
[387228018,1758661884813,-404.97681373,0.00024931,3]
[387228019,1758661884823,-400.0,0.00024931,3]
[387228020,1758661884832,-400.0,0.00024931,3]
[387228021,1758661884841,-400.0,0.00024931,3]
[387228022,1758661884850,-400.0,0.00024931,3]
[387228023,1758661884859,-400.0,0.00024931,3]
[387228024,1758661884869,-1129.63,0.00024931,3]
[387228025,1758661884878,-400.0,0.00024931,3]
[387228026,1758661884888,-400.0,0.00024931,3]
[387228027,1758661884897,-400.0,0.00024931,3]
[387228028,1758661884908,-400.0,0.00024931,3]
[387228029,1758661884917,-605.77,0.00024931,3]
[387228030,1758661884927,-581.82,0.00024931,3]
[387228031,1758661884936,-400.0,0.00024931,3]
[387228032,1758661884946,-591.24,0.00024931,3]
[387228033,1758661884955,-661.17,0.00024931,3]
[387228034,1758661884965,-400.0,0.00024931,3]
[387228035,1758661884975,-400.0,0.00024931,3]
[387228036,1758661884985,-400.0,0.00024931,3]
[387228037,1758661884995,-632.53,0.00024931,3]
[387228038,1758661885005,-400.0,0.00024931,3]
[387228039,1758661885014,-400.0,0.00024931,3]
[387228040,1758661885023,-400.0,0.00024931,3]
[387228041,1758661885033,-1030.73,0.00024931,3]
[387228042,1758661885042,-1332.78,0.00024931,3]
[387228043,1758661885051,-501.68709174,0.00024931,3]
[387228044,1758661885062,-400.0,0.00024931,3]
[387228045,1758661885072,-598.46,0.00024931,3]
[387228046,1758661885082,-400.0,0.00024931,3]
[387228047,1758661885093,-404.64701218,0.00024931,3]
[387228048,1758661885105,-400.0,0.00024931,3]
[387228049,1758661885119,-610.82,0.00024931,3]
[387228050,1758661885129,-634.0,0.00024931,3]
[387228051,1758661885138,-400.0,0.00024931,3]
[387228052,1758661885147,-400.0,0.00024931,3]
[387228053,1758661885156,-400.0,0.00024931,3]
[387228054,1758661885165,-407.17708127,0.00024931,3]
[387228055,1758661885174,-467.0,0.00024931,3]
[387228056,1758661885183,-400.0,0.00024931,3]
[387228057,1758661885193,-400.0,0.00024931,3]
[387228058,1758661885203,-400.0,0.00024931,3]
[387228059,1758661885212,-400.0,0.00024931,3]
[387228060,1758661885221,-263.05056,0.00024931,3]
[387228061,1758661885230,-400.0,0.00024931,3]
[387228062,1758661885240,-669.95,0.00024931,3]
[387228063,1758661885249,-383.16696126,0.00024931,3]
[387228064,1758661885260,-487.48,0.00024931,3]
[387228065,1758661885270,-494.25,0.00024931,3]
[387228066,1758661885280,-563.16,0.00024931,3]
[387228067,1758661885289,-221.01006794,0.00024931,3]
[387228068,1758661885299,-428.37,0.00024931,3]
[387228069,1758661885308,-400.0,0.00024931,3]
[387228070,1758661885317,-400.0,0.00024931,3]
[387228071,1758661885327,-400.0,0.00024931,3]
[387228072,1758661885336,-736.46,0.00024931,3]
[387228073,1758661885345,-400.0,0.00024931,3]
[387228074,1758661885355,-682.09,0.00024931,3]
[387228075,1758661885364,-400.0,0.00024931,3]
[387228076,1758661885373,-400.0,0.00024931,3]
[387228077,1758661885382,-400.0,0.00024931,3]
[387228078,1758661885392,-400.0,0.00024931,3]
[387228079,1758661885401,-1508.86,0.00024931,3]
[387228080,1758661885412,-400.0,0.00024931,3]
[387228081,1758661885422,-547.76,0.00024931,3]
[387228082,1758661885431,-400.0,0.00024931,3]
[387228083,1758661885440,-792.54,0.00024931,3]
[387228084,1758661885449,-400.0,0.00024931,3]
[387228085,1758661885459,-400.0,0.00024931,3]
[387228086,1758661885468,-400.0,0.00024931,3]
[387228087,1758661885477,-400.0,0.00024931,3]
[387228088,1758661885487,-400.0,0.00024931,3]
[387228089,1758661885497,-402.0971847,0.00024931,3]
[387228090,1758661885506,-427.71086099,0.00024931,3]
[387228091,1758661885516,-400.0,0.00024931,3]
[387228092,1758661885525,-400.0,0.00024931,3]
[387228093,1758661885534,-898.75,0.00024931,3]
[387228094,1758661885543,-400.0,0.00024931,3]
[387228095,1758661885553,-400.0,0.00024931,3]
[387228096,1758661885562,-400.0,0.00024931,3]
[387228097,1758661885572,-747.55,0.00024931,3]
[387228098,1758661885581,-400.0,0.00024931,3]
[387228099,1758661885597,-653.02,0.00024931,3]
[387228100,1758661885606,-400.0,0.00024931,3]
[387228101,1758661885615,-400.0,0.00024931,3]
[387228102,1758661885625,-400.0,0.00024931,3]
[387228103,1758661885635,-400.0,0.00024931,3]
[387228104,1758661885644,-400.0,0.00024931,3]
[387228105,1758661885654,-400.0,0.00024931,3]
[387228106,1758661885663,-400.0,0.00024931,3]
[387228107,1758661885673,-1079.41,0.00024931,3]
[387228108,1758661885683,-407.7050131,0.00024931,3]
[387228109,1758661885692,-400.0,0.00024931,3]
[387228110,1758661885702,-400.0,0.00024931,3]
[387228111,1758661885711,-400.0,0.00024931,3]
[387228112,1758661885721,-411.23875953,0.00024931,3]
[387228113,1758661885731,-1026.02,0.00024931,3]
[387228114,1758661885740,-400.0,0.00024931,3]
[387228115,1758661885750,-400.0,0.00024931,3]
[387228116,1758661885761,-508.48449269,0.00024931,3]
[387228117,1758661885771,-406.92916509,0.00024931,3]
[387228118,1758661885780,-400.0,0.00024931,3]
[387228119,1758661885789,-400.0,0.00024931,3]
[387228120,1758661885799,-690.37,0.00024931,3]
[387228121,1758661885808,-400.0,0.00024931,3]
[387228122,1758661885818,-400.0,0.00024931,3]
[387228123,1758661885828,-400.0,0.00024931,3]
[387228124,1758661885837,-400.0,0.00024931,3]
[387228125,1758661885846,-400.0,0.00024931,3]
[387228126,1758661885856,-1389.27,0.00024931,3]
[387228127,1758661885866,-400.5,0.00024931,3]
[387228128,1758661885876,-548.7,0.00024931,3]
[387228129,1758661885886,-400.0,0.00024931,3]
[387228130,1758661885895,-511.0,0.00024931,3]
[387228131,1758661885905,-400.0,0.00024931,3]
[387228132,1758661885914,-400.0,0.00024931,3]
[387228133,1758661885924,-417.65,0.00024931,3]
[387228134,1758661885933,-400.0,0.00024931,3]
[387228135,1758661885943,-575.09,0.00024931,3]
[387228136,1758661885953,-400.0,0.00024931,3]
[387228137,1758661885962,-400.0,0.00024931,3]
[387228138,1758661885972,-1081.13,0.00024931,3]
[387228139,1758661885981,-797.53,0.00024931,3]
[387228140,1758661885992,-400.0,0.00024931,3]
[387228141,1758661886230,-355.64678245,0.00024931,3]
[387228142,1758661886240,-491.6919292,0.00024931,3]
[387228143,1758661886250,-400.0,0.00024931,3]
[387228144,1758661886260,-400.0,0.00024931,3]
[387228145,1758661886269,-400.0,0.00024931,3]
[387228146,1758661886279,-1043.43,0.00024931,3]
[387228147,1758661886289,-400.0,0.00024931,3]
[387228148,1758661886299,-400.0,0.00024931,3]
[387228149,1758661886310,-400.0,0.00024931,3]
[387228150,1758661886319,-480.53,0.00024931,3]
[387228151,1758661886329,-400.0,0.00024931,3]
[387228152,1758661886338,-400.0,0.00024931,2]
[387228153,1758661886348,-400.0,0.00024931,3]
[387228154,1758661886357,-400.0,0.00024931,3]
[387228155,1758661886367,-400.0,0.00024931,3]
[387228156,1758661886376,-400.0,0.00024931,3]
[387228157,1758661886385,-400.0,0.00024931,3]
[387228158,1758661886394,-400.0,0.00024931,3]
[387228159,1758661886404,-574.03,0.00024931,3]
[387228160,1758661886413,-400.0,0.00024931,3]
[387228161,1758661886423,-939.33,0.00024931,3]
[387228162,1758661886432,-651.1,0.00024931,3]
[387228163,1758661886443,-483.63,0.00024931,3]
[387228164,1758661886454,-400.0,0.00024931,3]
[387228165,1758661886463,-400.0,0.00024931,3]
[387228166,1758661886473,-443.6,0.00024931,3]
[387228167,1758661886482,-400.0,0.00024931,3]
[387228168,1758661886492,-400.0,0.00024931,3]
[387228169,1758661886502,-400.0,0.00024931,3]
[387228170,1758661886511,-400.0,0.00024931,3]
[387228171,1758661886521,-400.0,0.00024931,3]
[387228172,1758661886530,-400.0,0.00024931,3]
[387228173,1758661886540,-561.36,0.00024931,3]
[387228174,1758661886549,-400.0,0.00024931,3]
[387228175,1758661886559,-408.42192506,0.00024931,3]
[387228176,1758661886569,-400.0,0.00024931,3]
[387228177,1758661886578,-724.42,0.00024931,3]
[387228178,1758661886589,-400.0,0.00024931,3]
[387228179,1758661886600,-400.0,0.00024931,3]
[387228180,1758661886609,-400.0,0.00024931,3]
[387228181,1758661886619,-467.79,0.00024931,3]
[387228182,1758661886630,-401.54883742,0.00024931,3]
[387228183,1758661886640,-522.87,0.00024931,3]
[387228184,1758661886650,-522.87,0.00024931,3]
[387228185,1758661886660,-400.0,0.00024931,3]
[387228186,1758661886672,-469.31,0.00024931,3]
[387228187,1758661886683,-1481.44,0.00024931,3]
[387228188,1758661886692,-1435.9,0.00024931,3]
[387228189,1758661886702,-400.0,0.00024931,3]
[387228190,1758661886712,-400.0,0.00024931,3]
[387228191,1758661886724,-400.0,0.00024931,3]
[387228192,1758661886739,-503.14,0.00024931,3]
[387228193,1758661886749,-400.0,0.00024931,3]
[387228194,1758661886759,-929.34,0.00024931,3]
[387228195,1758661886768,-182.82785183,0.00024931,3]
[387228196,1758661886777,-400.0,0.00024931,3]
[387228197,1758661886787,-400.0,0.00024931,3]
[387228198,1758661886796,-400.0,0.00024931,3]
[387228199,1758661886805,-400.0,0.00024931,3]
[387228200,1758661886815,-400.0,0.00024931,3]
[387228201,1758661886824,-400.0,0.00024931,3]
[387228202,1758661886833,-731.98,0.00024931,3]
[387228203,1758661886843,-400.0,0.00024931,3]
[387228204,1758661886852,-650.15,0.00024931,3]
[387228205,1758661886861,-764.72,0.00024931,3]
[387228206,1758661886870,-400.0,0.00024931,3]
[387228207,1758661886880,-400.0,0.00024931,3]
[387228208,1758661886889,-400.0,0.00024931,3]
[387228209,1758661886898,-436.15,0.00024931,3]
[387228210,1758661886907,-400.0,0.00024931,3]
[387228211,1758661886917,-400.0,0.00024931,3]
[387228212,1758661886926,-711.96,0.00024931,3]
[387228213,1758661886936,-400.0,0.00024931,3]
[387228214,1758661886945,-400.0,0.00024931,3]
[387228215,1758661886955,-400.0,0.00024931,3]
[387228216,1758661886964,-400.0,0.00024931,3]
[387228217,1758661886974,-402.28759649,0.00024931,3]
[387228218,1758661886984,-400.0,0.00024931,3]
[387228219,1758661886993,-400.0,0.00024931,3]
[387228220,1758661887003,-400.0,0.00024931,3]
[387228221,1758661887012,-894.7,0.00024931,3]
[387228222,1758661887022,-400.0,0.00024931,3]
[387228223,1758661887031,-1519.84,0.00024931,3]
[387228224,1758661887040,-400.0,0.00024931,3]
[387228225,1758661887050,-400.0,0.00024931,3]
[387228226,1758661887059,-400.0,0.00024931,3]
[387228227,1758661887070,-400.0,0.00024931,3]
[387228228,1758661887080,-962.32,0.00024931,3]
[387228229,1758661887089,-400.0,0.00024931,3]
[387228230,1758661887098,-400.0,0.00024931,3]
[387228231,1758661887107,-400.0,0.00024931,3]
[387228232,1758661887118,-400.0,0.00024931,3]
[387228233,1758661887129,-1008.67,0.00024931,3]
[387228234,1758661887139,-583.14,0.00024931,3]
[387228235,1758661887148,-400.0,0.00024931,3]
[387228236,1758661887158,-400.0,0.00024931,3]
[387228237,1758661887168,-400.0,0.00024931,3]
[387228238,1758661887178,-484.81,0.00024931,3]
[387228239,1758661887188,-400.0,0.00024931,2]
[387228240,1758661887199,-586.75,0.00024931,3]
[387228241,1758661887209,-410.95,0.00024931,3]
[387228242,1758661887219,-1568.09,0.00024931,3]
[387228243,1758661887230,-1471.33,0.00024931,3]
[387228244,1758661887239,-494.88,0.00024931,3]
[387228245,1758661887250,-400.0,0.00024931,3]
[387228246,1758661887260,-477.94,0.00024931,3]
[387228247,1758661887269,-400.0,0.00024931,3]
[387228248,1758661887280,-400.0,0.00024931,3]
[387228249,1758661887290,-589.79,0.00024931,3]
[387228250,1758661887300,-400.0,0.00024931,3]
[387228251,1758661887310,-499.46866033,0.00024931,3]
[387228252,1758661887319,-400.0,0.00024931,3]
[387228253,1758661887328,-400.74,0.00024931,3]
[387228254,1758661887338,-400.0,0.00024931,3]
[387228255,1758661887348,-464.27,0.00024931,3]
[387228256,1758661887357,-400.0,0.00024931,3]
[387228257,1758661887367,-400.0,0.00024931,3]
[387228258,1758661887376,-1054.98,0.00024931,3]
[387228259,1758661887386,-400.0,0.00024931,3]
[387228260,1758661887395,-400.0,0.00024931,3]
[387228261,1758661887405,-400.0,0.00024931,3]
[387228262,1758661887414,-728.05,0.00024931,3]
[387228263,1758661887423,-1207.15,0.00024931,3]
[387228264,1758661887433,-400.0,0.00024931,3]
[387228265,1758661887443,-400.0,0.00024931,3]
[387228266,1758661887452,-400.0,0.00024931,3]
[387228267,1758661887462,-400.0,0.00024931,3]
[387228268,1758661887471,-405.64945994,0.00024931,3]
[387228269,1758661887480,-400.0,0.00024931,3]
[387228270,1758661887490,-400.0,0.00024931,3]
[387228271,1758661887499,-400.0,0.00024931,3]
[387228272,1758661887509,-2675.83,0.00024931,3]
[387228273,1758661887518,-943.31,0.00024931,3]
[387228274,1758661887527,-400.0,0.00024931,3]
[387228275,1758661887537,-405.18757348,0.00024931,3]
[387228276,1758661887546,-547.04,0.00024931,3]
[387228277,1758661887555,-402.35058327,0.00024931,3]
[387228278,1758661887565,-4385.71,0.00024931,3]
[387228279,1758661887574,-400.0,0.00024931,3]
[387228280,1758661887584,-400.0,0.00024931,3]
[387228281,1758661887597,-400.0,0.00024931,3]
[387228282,1758661887606,-400.0,0.00024931,3]
[387228283,1758661887615,-400.0,0.00024931,3]
[387228284,1758661887625,-400.0,0.00024931,3]
[387228285,1758661887637,-400.0,0.00024931,3]
[387228286,1758661887646,-404.62608762,0.00024931,3]
[387228287,1758661887656,-400.0,0.00024931,3]
[387228288,1758661887665,-925.91,0.00024931,3]
[387228289,1758661887675,-827.82,0.00024931,3]
[387228290,1758661887685,-860.67,0.00024931,3]
[387228291,1758661887694,-409.87632272,0.00024931,3]
[387228292,1758661887703,-400.0,0.00024931,3]
[387228293,1758661887713,-400.0,0.00024931,3]
[387228294,1758661887722,-400.0,0.00024931,3]
[387228295,1758661887732,-400.0,0.00024931,3]
[387228296,1758661887741,-585.88,0.00024931,3]
[387228297,1758661887750,-632.72,0.00024931,3]
[387228298,1758661887760,-400.0,0.00024931,3]
[387228299,1758661887769,-548.39,0.00024931,3]
[387228300,1758661887779,-2108.3,0.00024931,3]
[387228301,1758661887789,-488.87,0.00024931,3]
[387228302,1758661887799,-400.0,0.00024931,3]
[387228303,1758661887808,-470.98,0.00024931,3]
[387228304,1758661887817,-483.78,0.00024931,3]
[387228305,1758661887828,-400.0,0.00024931,3]
[387228306,1758661887838,-400.0,0.00024931,3]
[387228307,1758661887848,-400.0,0.00024931,3]
[387228308,1758661887858,-859.91,0.00024931,3]
[387228309,1758661887867,-400.0,0.00024931,3]
[387228310,1758661887876,-400.0,0.00024931,3]
[387228311,1758661887885,-400.0,0.00024931,3]
[387228312,1758661887895,-400.0,0.00024931,3]
[387228313,1758661887905,-400.0,0.00024931,3]
[387228314,1758661887914,-400.0,0.00024931,3]
[387228315,1758661887923,-2018.73,0.00024931,3]
[387228316,1758661887933,-400.0,0.00024931,3]
[387228317,1758661887943,-400.0,0.00024931,3]
[387228318,1758661887952,-563.54,0.00024931,3]
[387228319,1758661887962,-405.27,0.00024931,3]
[387228320,1758661887971,-400.0,0.00024931,3]
[387228321,1758661887980,-151.77971179,0.00024931,3]
[387228322,1758661887990,-679.19,0.00024931,3]
[387228323,1758661887999,-403.61,0.00024931,3]
[387228324,1758661888008,-400.0,0.00024931,3]
[387228325,1758661888018,-2737.53,0.00024931,3]
[387228326,1758661888027,-400.0,0.00024931,3]
[387228327,1758661888037,-400.0,0.00024931,3]
[387228328,1758661888047,-400.0,0.00024931,3]
[387228329,1758661888056,-946.35,0.00024931,3]
[387228330,1758661888066,-400.0,0.00024931,3]
[387228331,1758661888075,-400.0,0.00024931,3]
[387228332,1758661888084,-1485.69,0.00024931,3]
[387228333,1758661888094,-400.0,0.00024931,3]
[387228334,1758661888103,-602.24,0.00024931,3]
[387228335,1758661888113,-2597.12,0.00024931,3]
[387228336,1758661888122,-400.0,0.00024931,3]
[387228337,1758661888131,-990.09,0.00024931,3]
[387228338,1758661888141,-837.36,0.00024931,3]
[387228339,1758661888150,-400.0,0.00024931,3]
[387228340,1758661888160,-400.0,0.00024931,3]
[387228341,1758661888170,-594.08,0.00024931,3]
[387228342,1758661888180,-1066.94,0.00024931,3]
[387228343,1758661888189,-2817.32,0.00024931,3]
[387228344,1758661888198,-886.58,0.00024931,3]
[387228345,1758661888207,-400.0,0.00024931,3]
[387228346,1758661888217,-486.18,0.00024931,3]
[387228347,1758661888226,-400.0,0.00024931,3]
[387228348,1758661888235,-937.55,0.00024931,3]
[387228349,1758661888245,-400.0,0.00024931,3]
[387228350,1758661888254,-400.0,0.00024931,3]
[387228351,1758661888264,-911.75,0.00024931,3]
[387228352,1758661888273,-1574.78,0.00024931,3]
[387228353,1758661888282,-218.95683703,0.00024931,3]
[387228354,1758661888292,-1609.95,0.00024931,3]
[387228355,1758661888301,-422.24,0.00024931,3]
[387228356,1758661888311,-623.68,0.00024931,3]
[387228357,1758661888320,-404.65,0.00024931,3]
[387228358,1758661888329,-406.12147532,0.00024931,3]
[387228359,1758661888338,-528.15,0.00024931,3]
[387228360,1758661888347,-400.0,0.00024931,3]
[387228361,1758661888356,-400.0,0.00024931,3]
[387228362,1758661888365,-549.7024366,0.00024931,3]
[387228363,1758661888375,-657.66,0.00024931,3]
[387228364,1758661888384,-400.0,0.00024931,3]
[387228365,1758661888395,-1441.07,0.00024931,3]
[387228366,1758661888404,-992.93,0.00024931,3]
[387228367,1758661888413,-400.0,0.00024931,3]
[387228368,1758661888423,-400.0,0.00024931,3]
[387228369,1758661888432,-2268.08,0.00024931,3]
[387228370,1758661888441,-704.78,0.00024931,3]
[387228371,1758661888450,-400.0,0.00024931,3]
[387228372,1758661888459,-802.09,0.00024931,3]
[387228373,1758661888469,-509.55,0.00024931,3]
[387228374,1758661888479,-400.0,0.00024931,3]
[387228375,1758661888488,-1081.07,0.00024931,3]
[387228376,1758661888497,-400.0,0.00024931,3]
[387228377,1758661888507,-11213.57,0.00024931,3]
[387228378,1758661888516,-400.0,0.00024931,3]
[387228379,1758661888526,-2795.04,0.00024931,3]
[387228380,1758661888536,-733.79,0.00024931,3]
[387228381,1758661888545,-456.1,0.00024931,3]
[387228382,1758661888554,-2238.02,0.00024931,3]
[387228383,1758661888563,-400.0,0.00024931,3]
[387228384,1758661888572,-2223.14,0.00024931,3]
[387228385,1758661888581,-400.0,0.00024931,3]
[387228386,1758661888592,-400.0,0.00024931,3]
[387228387,1758661888601,-2293.07,0.00024931,3]
[387228388,1758661888610,-400.0,0.00024931,3]
[387228389,1758661888619,-400.0,0.00024931,3]
[387228390,1758661888629,-400.0,0.00024931,3]
[387228391,1758661888639,-567.15,0.00024931,3]
[387228392,1758661888648,-400.0,0.00024931,3]
[387228393,1758661888657,-1191.74,0.00024931,3]
[387228394,1758661888668,-400.0,0.00024931,3]
[387228395,1758661888677,-514.89,0.00024931,3]
[387228396,1758661888687,-659.28,0.00024931,3]
[387228397,1758661888696,-400.0,0.00024931,3]
[387228398,1758661888705,-479.1274291,0.00024931,3]
[387228399,1758661888714,-547.97,0.00024931,3]
[387228400,1758661888723,-2148.35,0.00024931,3]
[387228401,1758661888733,-400.0,0.00024931,3]
[387228402,1758661888742,-617.16,0.00024931,3]
[387228403,1758661888752,-400.0,0.00024931,3]
[387228404,1758661888762,-400.0,0.00024931,3]
[387228405,1758661888772,-1298.03,0.00024931,3]
[387228406,1758661888782,-400.0,0.00024931,3]
[387228407,1758661888792,-400.0,0.00024931,3]
[387228408,1758661888801,-400.0,0.00024931,3]
[387228409,1758661888811,-400.0,0.00024931,3]
[387228410,1758661888822,-1196.25,0.00024931,3]
[387228411,1758661888832,-409.55,0.00024931,3]
[387228412,1758661888842,-509.21,0.00024931,3]
[387228413,1758661888851,-400.0,0.00024931,3]
[387228414,1758661888861,-400.0,0.00024931,3]
[387228415,1758661888871,-1524.41,0.00024931,3]
[387228416,1758661888880,-400.0,0.00024931,3]
[387228417,1758661888890,-458.41,0.00024931,3]
[387228418,1758661888899,-400.0,0.00024931,3]
[387228419,1758661888909,-400.0,0.00024931,3]
[387228420,1758661888918,-747.25,0.00024931,3]
[387228421,1758661888928,-400.0,0.00024931,3]
[387228422,1758661888937,-3682.29,0.00024931,3]
[387228423,1758661888947,-561.63,0.00024931,3]
[387228424,1758661888956,-1209.62,0.00024931,3]
[387228425,1758661888965,-400.0,0.00024931,3]
[387228426,1758661888975,-601.96,0.00024931,3]
[387228427,1758661888984,-400.0,0.00024931,3]
[387228428,1758661888993,-400.0,0.00024931,3]
[387228429,1758661889003,-400.0,0.00024931,3]
[387228430,1758661889012,-400.0,0.00024931,3]
[387228431,1758661889021,-400.0,0.00024931,3]
[387228432,1758661889030,-400.0,0.00024931,3]
[387228433,1758661889042,-605.83,0.00024931,3]
[387228434,1758661889051,-400.0,0.00024931,3]
[387228435,1758661889060,-1927.17,0.00024931,3]
[387228436,1758661889069,-2380.75,0.00024931,3]
[387228437,1758661889079,-400.0,0.00024931,3]
[387228438,1758661889088,-400.0,0.00024931,3]
[387228439,1758661889097,-177.22407266,0.00024931,3]
[387228440,1758661889106,-1578.93,0.00024931,3]
[387228441,1758661889115,-2166.07,0.00024931,3]
[387228442,1758661889125,-586.7,0.00024931,3]
[387228443,1758661889134,-400.0,0.00024931,3]
[387228444,1758661889143,-400.0,0.00024931,3]
[387228445,1758661889152,-400.0,0.00024931,3]
[387228446,1758661889161,-400.0,0.00024931,3]
[387228447,1758661889170,-400.0,0.00024931,3]
[387228448,1758661889179,-401.39049515,0.00024931,3]
[387228449,1758661889188,-400.0,0.00024931,3]
[387228450,1758661889197,-460.5,0.00024931,3]
[387228451,1758661889207,-539.48,0.00024931,3]
[387228452,1758661889216,-400.0,0.00024931,3]
[387228453,1758661889225,-400.0,0.00024931,3]
[387228454,1758661889234,-680.71,0.00024931,3]
[387228455,1758661889243,-488.42,0.00024931,3]
[387228456,1758661889252,-2422.43,0.00024931,3]
[387228457,1758661889262,-2374.74,0.00024931,3]
[387228458,1758661889272,-576.54,0.00024931,3]
[387228459,1758661889281,-400.0,0.00024931,3]
[387228460,1758661889291,-2317.08,0.00024931,3]
[387228461,1758661889301,-400.0,0.00024931,3]
[387228462,1758661889310,-682.77,0.00024931,3]
[387228463,1758661889329,-400.0,0.00024931,3]
[387228464,1758661889339,-719.11,0.00024931,3]
[387228465,1758661889348,-1224.99,0.00024931,3]
[387228466,1758661889358,-2048.56,0.00024931,3]
[387228467,1758661889367,-452.55,0.00024931,3]
[387228468,1758661889376,-1715.79,0.00024931,3]
[387228469,1758661889386,-400.0,0.00024931,3]
[387228470,1758661889396,-1722.29,0.00024931,3]
[387228471,1758661889405,-400.0,0.00024931,3]
[387228472,1758661889414,-400.0,0.00024931,3]
[387228473,1758661889424,-1688.85,0.00024931,3]
[387228474,1758661889433,-610.73,0.00024931,3]
[387228475,1758661889442,-400.0,0.00024931,3]
[387228476,1758661889451,-400.0,0.00024931,3]
[387228477,1758661889461,-400.0,0.00024931,3]